Cogmind - Beta 15 @@@ ROGUE MODE // 2025.05.23 @ 10:06:29 Player: KeKe Result: Destroyed by 2W-EYK(R) with Subdweller Shrapnel Launcher Performance ------------- Evolutions (0) 0 Regions Visited (2) 400 Robots Destroyed (34) 170 Value Destroyed (778) 778 Prototype IDs (11) 220 Alien Tech Used (0) 0 Bonus (0) 0 TOTAL SCORE: 1568 Bonus ------- None Cogmind --------- Core Integrity 0/250 Matter 295/300 Energy 133/160 System Corruption 0% Temperature Warm (165) Movement Core (450) Ox8 Location -10/Subcaves Parts ------- > --- POWER (1+1) ------ Light Nuclear Core > --- PROPULSION (2+1) - (None) > --- UTILITY (2) ------ Medium Storage Unit Rainbow Chip > --- WEAPON (2+1) ----- Beam Rifle Beam Rifle (+) Subdweller Laser > --- INVENTORY (10) --- Heat Sink Large Battery (200) Subdweller Optics Sensor Array Small Laser Mini Grenade Launcher Makeshift Sword Scrap Shield Fragment (45) Peak State ------------ > --- POWER ------------ Subdweller Power Source > --- PROPULSION ------- Wheel > --- UTILITY ---------- Heat Sink Medium Storage Unit Rainbow Chip > --- WEAPON ----------- Beam Rifle Beam Rifle Subdweller Laser > --- INVENTORY -------- Light Nuclear Core Heat Sink Large Battery Subdweller Optics Sensor Array Small Laser Mini Grenade Launcher Makeshift Sword Scrap Shield Fragment [Rating: 25] Favorites ----------- Power Subdweller Power Source Engine Subdweller Power Source Power Core Light Nuclear Core Propulsion Wheel Wheel Wheel Utility Medium Storage Unit Device Heat Sink Storage Medium Storage Unit Processor Rainbow Chip Weapon Beam Rifle Energy Gun Beam Rifle Ballistic Gun Assault Rifle Special Weapon Mining Laser Build | -11 -10 -10 ------- Run | Yrd Mat Sub Slots Evolved . | . . . Power . | . . . Propulsion . | . . . Utility . | . . . Weapon . | . . . Parts Attached 26 | 7 16 3 Power 5 | 1 3 1 Engine 4 | 1 2 1 Core 1 | . 1 . Reactor . | . . . Propulsion 5 | 2 3 . Treads . | . . . Leg . | . . . Wheel 5 | 2 3 . Hover . | . . . Flight . | . . . Utility 6 | 2 3 1 Device 2 | 1 1 . Storage 2 | 1 1 . Processor 2 | . 1 1 Hackware . | . . . Protection . | . . . Artifact . | . . . Weapon 10 | 2 7 1 Energy Gun 8 | 1 6 1 Energy Cannon . | . . . Ballistic Gun 1 | 1 . . Ballistic Cannon . | . . . Launcher . | . . . Special Weapon 1 | . 1 . Impact Weapon . | . . . Slashing Weapon . | . . . Piercing Weapon . | . . . Special Melee Weapon . | . . . Unidentified Prototypes . | . . . Parts Lost 10 | . 8 2 Power 2 | . 2 . Propulsion 5 | . 4 1 Utility 1 | . . 1 Weapon 2 | . 2 . Highest Loss Streak 4 | . 4 1 To Critical Strikes . | . . . Average Backups 8 | 1 8 8 Power 1 | . . 1 Propulsion . | . 1 . Utility 3 | . 2 3 Weapon 3 | . 4 3 Tool/Special . | . . . Unused Backups 12 | . 3 9 Power 2 | . 1 1 Propulsion . | . . . Utility 4 | . . 4 Weapon 6 | . 2 4 Tool/Special . | . . . Average Slot Usage (%) 78 | . 90 71 Engine 9 | . 13 7 Core 2 | . . 3 Wheel 10 | . 19 5 Device 8 | . 5 10 Storage 11 | . 14 10 Processor 6 | . 8 5 Energy Gun 27 | . 26 27 Peak Build Rating 25 | 9 11 25 Average Rating 15 | 5 9 19 On Entrance 6 | . 9 11 Naked Turns . | . . . Heaviest Build 26 | 15 22 26 Greatest Support 20 | 20 20 10 Greatest Overweight (x) 8 | . 2 8 Average Overweight (x) 2 | . . 3 Largest Inventory Capacity 10 | 8 10 10 Average Capacity 9 | 7 9 10 Most Carried 10 | 5 10 10 Average Carried 8 | 1 8 9 Final Capacity 10 | 8 10 10 Final Carried 9 | 5 9 8 Class Distribution -------------------- 49% | Mutant 35% | Gunner 9% | Scavenger-Mutant 5% | Scavenger-Gunner Dominant Class ---------------- Mutant | -10/Materials Gunner | -10/Subcaves Resources | -11 -10 -10 ----------- Run | Yrd Mat Sub Matter Collected 525 | 303 177 45 Remotely . | . . . Salvage Created 1311 | 200 862 249 Parts 81 | 23 44 14 Haulers Intercepted 1 | . 1 . Recyclers Shooed 2 | . 2 . Parts Field Recycled . | . . . Retrieved Matter . | . . . Parts Self-Destructed 5 | . . 5 Prevented . | . . . Kills | -11 -10 -10 ------- Run | Yrd Mat Sub Combat Hostiles Destroyed 21 | . 15 6 Guns 20 | . 14 6 Classes Destroyed 8 | 2 5 1 Worker 3 | . 3 . Builder 1 | . 1 . Tunneler 5 | 5 . . Hauler 1 | . 1 . Recycler 3 | 1 2 . Swarmer 3 | . 3 . Grunt 14 | . 12 2 Subdweller 4 | . . 4 Best Kill Streak 6 | 6 5 2 Combat Bots Only 5 | . 5 2 Max Kills in Single Turn 1 | 1 1 1 Gunslinging . | . . . Exploded . | . . . Melee . | . . . Uniques/NPCs Destroyed . | . . . Combat | -11 -10 -10 -------- Run | Yrd Mat Sub Hostile Shots Fired 95 | . 77 18 Missed 20 | . 12 8 Hits 75 | . 65 10 Projectile 75 | . 65 10 AOE 4 | . . 4 Damage Taken 1039 | . 726 313 Core 252 | . 140 112 Absorbed by Shields . | . . . Core Remaining (%) 100 | 100 . . Volleys Fired 95 | 11 64 20 Largest 3 | 2 2 3 Hottest 172 | 70 112 172 Shots Fired 195 | 22 126 47 Gun 194 | 22 125 47 Cannon . | . . . Launcher . | . . . Special 1 | . 1 . Kinetic 20 | 11 9 . Thermal 155 | 11 97 47 Explosive . | . . . Electromagnetic 20 | . 20 . Robot Hit Streak 10 | 9 10 10 Robot Miss Streak 4 | 2 4 2 Penetration Max . | . . . Secondary Targets 2 | . 2 . Max Gunslinging Chain 1 | . 1 . Shots Hit Robots 122 | 13 83 26 Core Hits 50 | 7 33 10 Critical Kills . | . . . Critical Parts Destroyed . | . . . Critical Strikes 7 | . 6 1 Burn 6 | . 5 1 Corrupt 1 | . 1 . Melee Attacks . | . . . Impact . | . . . Slashing . | . . . Piercing . | . . . Sneak Attacks . | . . . Combat Hostiles . | . . . Follow-up Attacks . | . . . Damage Inflicted 1776 | 160 1208 408 Guns 1776 | 160 1208 408 Cannons . | . . . Explosions . | . . . Melee . | . . . Ramming . | . . . Kinetic 148 | 48 100 . Thermal 1472 | 112 952 408 Explosive . | . . . Electromagnetic 156 | . 156 . Impact . | . . . Slashing . | . . . Piercing . | . . . Highest Corruption . | . . . Average Corruption . | . . . Corruption Purged . | . . . Corruption Blocked . | . . . Overload Shots . | . . . Overflow Damage . | . . . Projectiles . | . . . Explosions . | . . . Melee . | . . . Knockbacks . | . . . Impact . | . . . Kinetic . | . . . Secondary . | . . . Self-Inflicted Damage . | . . . Shots . | . . . Rammed . | . . . Targets Rammed . | . . . Kicked . | . . . Crushed . | . . . Highest Temperature 491 | 99 491 165 Average Temperature 117 | 50 131 51 Received Heat Transfer 438 | . 393 45 Effects 2 | . 2 . Shutdowns 2 | . 2 . Siege Activations . | . . . Martial Activations . | . . . Shielding Activations . | . . . Robots Disrupted . | . . . Combat Hostiles . | . . . Robots Corrupted . | . . . Combat Hostiles . | . . . Parts Fried . | . . . Impact Corruptions . | . . . Robots Melted 1 | . 1 . Combat Hostiles 1 | . 1 . Parts Melted 9 | . 6 3 Heat Transferred 4146 | 333 2849 964 Parts Sabotaged . | . . . Parts Stolen . | . . . Parts Stripped . | . . . Power Chain Reactions . | . . . Alert | -11 -10 -10 ------- Run | Yrd Mat Sub Maximum Alert Level . | . . . Low Security (%) 100 | 100 100 . Level 1 . | . . . Level 2 . | . . . Level 3 . | . . . Level 4 . | . . . Level 5 . | . . . High Security . | . . . Max Security . | . . . Peak Influence 166 | 20 166 . Initial 6 | . 6 . Average 46 | 5 52 . Influence Increases 578 | 30 498 50 Destroy 0b10 Robot/C 340 | . 300 40 Destroy 0b10 Robot/NC 65 | 30 35 . Destroy Leader 82 | . 72 10 Disable Machine 15 | . 15 . Destroy Structure 1 | . 1 . Lose Combat Pursuer 75 | . 75 . Influence Decreases 578 | 20 392 166 Entered New Map 60 | . 4 56 Time Decay 445 | 20 315 110 Lost Part 73 | . 73 . Squads Dispatched 4 | . 4 . Investigation 2 | . 2 . Extermination . | . . . Reinforcement 2 | . 2 . Assault . | . . . Garrison . | . . . Intercept . | . . . Searches Triggered . | . . . Construction Impeded . | . . . Haulers Reinforced . | . . . Active Scanning Responses . | . . . Cargo Convoy Interrupts . | . . . Stealth | -11 -10 -10 --------- Run | Yrd Mat Sub Distress Signals 2 | . 2 . Communications Jammed . | . . . Distress Signals . | . . . Times Spotted 32 | . 23 9 Peak Tracking Total 6 | . 6 2 Tactical Retreats 5 | . 4 1 Traps | -11 -10 -10 ------- Run | Yrd Mat Sub Traps Triggered 3 | . 2 1 Indirectly . | . . . Trap Hack Attempts . | . . . Triggered . | . . . Disarmed . | . . . Reprogrammed . | . . . Reused . | . . . Traps Extracted . | . . . Installed . | . . . Triggered . | . . . Machines | -11 -10 -10 ---------- Run | Yrd Mat Sub Machines Disabled 2 | . 1 1 Max in Single Turn 1 | . 1 1 Machines Repaired . | . . . Machines Dismantled . | . . . Machines Sabotaged . | . . . Overloaded Fab Kills . | . . . Hacking | -11 -10 -10 --------- Run | Yrd Mat Sub Machines Accessed 2 | . . 2 Terminals . | . . . Fabricators . | . . . Repair Stations . | . . . Recycling Units . | . . . Scanalyzers . | . . . Garrison Access . | . . . Total Hacks 13 | . . 13 Successful 13 | . . 13 Failed . | . . . Catastrophic . | . . . Database Lockouts . | . . . Manual . | . . . Terminals . | . . . Fabricators . | . . . Repair Stations . | . . . Recycling Units . | . . . Scanalyzers . | . . . Garrison Access . | . . . Terminal Hacks 13 | . . 13 Record 12 | . . 12 Proto ID Catalog 1 | . . 1 Fabricator Hacks . | . . . Repair Station Hacks . | . . . Recycling Unit Hacks . | . . . Scanalyzer . | . . . Garrison Access Hacks . | . . . Unauthorized Hacks . | . . . Terminals . | . . . Fabricators . | . . . Repair Stations . | . . . Recycling Units . | . . . Scanalyzers . | . . . Garrison Access . | . . . Data Cores Recovered . | . . . Used . | . . . Hacking Detections . | . . . Full Trace Events . | . . . Feedback Events . | . . . Feedback Blocked . | . . . Robot Schematics Acquired . | . . . Robots Built . | . . . Authchips . | . . . Time . | . . . Total Robot Build Rating . | . . . Part Schematics Acquired . | . . . Parts Built . | . . . Authchips . | . . . Time . | . . . Total Part Build Rating . | . . . Parts Repaired . | . . . Time . | . . . Parts Recycled . | . . . Recycled Matter . | . . . Retrieved Matter . | . . . Retrieved Components . | . . . Parts Scanalyzed . | . . . Part Schematics Acquired . | . . . Parts Damaged . | . . . Bothacking | -11 -10 -10 ------------ Run | Yrd Mat Sub Used RIF Installer . | . . . Robots Hacked . | . . . Non-combat . | . . . Combat . | . . . Robot Hacks Applied . | . . . Relay Couplers Released . | . . . Fabnet Peak Effective % . | . . . Robots Rewired . | . . . Allies Hacked . | . . . Hacks Repelled . | . . . Allies | -11 -10 -10 -------- Run | Yrd Mat Sub Total Allies . | . . . Largest Group . | . . . Highest-Rated Group . | . . . Highest-Rated Ally . | . . . Total Orders . | . . . Ally Attacks . | . . . Total Damage . | . . . Kills . | . . . Allies Corrupted . | . . . Allies Melted . | . . . Intel | -11 -10 -10 ------- Run | Yrd Mat Sub Active Infowar (turns) 111 | 16 95 . Terrain 111 | 16 95 . Robot Analysis Total . | . . . Derelict Logs Recovered 2 | . . 2 Drone Launches . | . . . Drone Recoveries . | . . . Exploration | -11 -10 -10 ------------- Run | Yrd Mat Sub Turns Passed 2287 | 98 774 1415 Spaces Moved 1086 | 63 395 628 Core 177 | 1 . 176 Treads . | . . . Legs . | . . . Wheels 909 | 62 395 452 Hover . | . . . Flight . | . . . Fastest Speed 50 | 50 80 95 Average Speed 157 | 79 93 205 Slowest Speed 450 | 80 110 450 Overloaded Moves . | . . . Propulsion Burnouts . | . . . Robots Hopped . | . . . Potential Cave-ins . | . . . Cave-ins Triggered . | . . . Exploration Rate (%) 46 | 4 72 63 Regions Visited 2 Branch Regions 1 Pre-discovered Areas 1 | . . 1 Known Exits Taken . | . . . Unknown Exits Taken 2 | 1 1 . Scrap Searched . | . . . Spaces Dug . | . . . Terrain Destroyed . | . . . Melee . | . . . Projectile . | . . . AOE . | . . . Terrain Rammed . | . . . Walls Destroyed . | . . . Machines Disabled . | . . . Actions | -11 -10 -10 --------- Run | Yrd Mat Sub Total 1473 | 85 672 716 Wait 222 | . 171 51 Move 1084 | 62 394 628 Hop . | . . . Pick Up 25 | 5 16 4 Fast Attach 13 | 7 3 3 Attach 11 | . 9 2 Detach . | . . . Swap 6 | . 5 1 Drop 17 | . 10 7 Fire 95 | 11 64 20 Melee . | . . . Ram . | . . . Kick . | . . . Crush . | . . . Escape Stasis . | . . . Rewire . | . . . Trap . | . . . Miscellaneous . | . . . Route ------- -11/Scrapyard -10/Materials (discovered 4 exits: *Mat x3 / *Sub) -10/Subcaves (discovered 1 exit: [*Mat]) History --------- Turn | Location | Event 27 | -11/Scrapyard | Discovered new exit (range 14) 99 | -11/Scrapyard | Entered Materials 318 | -10/Materials | Build established: Mutant 372 | -10/Materials | Discovered new exit (range 16) 459 | -10/Materials | Lost 4 parts (1p2n1w) 583 | -10/Materials | Discovered new exit (range 5) 587 | -10/Materials | Identified exit to Materials 729 | -10/Materials | Discovered exit to Materials (range 11) 842 | -10/Materials | Discovered new exit (range 9) 849 | -10/Materials | Core integrity fell below 50% 873 | -10/Materials | Entered Subcaves 874 | -10/Subcaves | Approached by a straggling Scientist 939 | -10/Subcaves | A swath of the cavern ceiling suddenly collapsed 1080 | -10/Subcaves | Discovered new exit (range 14) 1121 | -10/Subcaves | Visited Clippyterm 1124 | -10/Subcaves | Learned Research machine intel 1169 | -10/Subcaves | Shifting Twisted Machinery released Mak. Sword 1170 | -10/Subcaves | Shifting Twisted Machinery released Riot Gun 1274 | -10/Subcaves | Learned location of Zion (-7) 1277 | -10/Subcaves | Learned Materials non-interactive machine intel 1327 | -10/Subcaves | Visited 4L-MR0's lab 1343 | -10/Subcaves | Found Rainbow Chip 1344 | -10/Subcaves | Attached Rainbow Chip, gained temporary slots: Power, Propulsion, Utility, Weapon 1771 | -10/Subcaves | Build established: Gunner 2285 | -10/Subcaves | Core integrity fell below 20% 2288 | -10/Subcaves | Destroyed by 2W-EYK(R) with Subdweller Shrapnel Launcher Last Messages --------------- slot. 01345_ Acquired Heat Sink. 01470_ G-47 Trooper suffers critical hit (Burn). 01470_ Wheel destroyed. 01473_ G-47 Trooper destroyed. 01480_ G-34 Mercenary destroyed. 01483_ Acquired 25 matter. 01484_ Aluminum Leg fries itself beyond repair. 01498_ Heat Sink fries itself beyond repair. 02146_ Sub. Power Source shoots sparks and powers down. 02149_ Dropped Broken Sub. Power Source. 02160_ Subatomizers dissect the Broken Sub. Power Source. 02280_ Sub. Monowheel melted. 02280_ Sub. Power Source melted. 02280_ SJ-H1E(R) destroyed. 02282_ Heat Sink destroyed. 02283_ Temporary Utility slot lost. Map ----- +----------------------------------------------------+ | ??????#"""## < ## #????????????????????????? | | ??????#"" ## #????????????????????????? | | ??????#"X ##????????????????????????? | | ??????#"" ## ## #####?????????????????????????? | | ??????#"""### #?##?????????????????????????????? | | ??????##### ## ##????????????????????????????? | | ?????????# #????????????????????????????? | | ?????????# ##????????????????????????????? | | ?????????# ## ##?????????????????????????????? | | ?????????# ##? ##??? ????????????????????????? | | ?????????## ##? ???? ???????????????????????? | | ??????????# #? ##??? ???????????????????????? | | ??????????#! ### #??? ????# ????????????????? | | ?????????##%[ # #??# ???## #???????????????? | | ?????????#*&& #???# ####; ???????????????? | | ?????????## ####?### # ;; ???????????????? | | ##???????# #???## #;;; ????????????????? | | ####????##"" #??##" #; ;#?????????????????? | | #????# " #??#"" % ;#??????????????????? | | #????# "" #??# ;##?????????????????? | | #?????# " ##??# ;##????????????????? | | #??????# " ##??# [ ##???????????????? | | #?????## ##?# #???????????????? | | #?????## ### # # ????????? | | ##????# ????????? | | ###### """ @ ????????? | | ## """ ;#???????????????? | | " "" R [ ??????????? | | ## ### """" &%! ?????????? | | ##### #?##"""""# ; ;# # ?????????? | | #???#### #??############ ; ;;#???????????????? | | ###??????###??????????????# #;;;##???????????????? | | ???????????????????????????######????????????????? | | ?????????????????????????????????????????????????? | | ?????????????????????????????????????????????????? | | ?????????????????????????????????????????????????? | | ?????????????????????????????????????????????????? | | ?????????????????????????????????????????????????? | | ?????????????????????????????????????????????????? | | ?????????????????????????????????????????????????? | | ?????????????????????????????????????????????????? | | ?????????????????????????????????????????????????? | | ?????????????????????????????????????????????????? | | ?????????????????????????????????????????????????? | | ?????????????????????????????????????????????????? | | ?????????????????????????????????????????????????? | | | | | | | | | +----------------------------------------------------+ Best States ------------- Heat Dissipation 35 Energy Generation 15 Energy Capacity 250 Matter Stores 300 Matter Capacity 300 Sight Range 16 Terrain Scan Range 16 Terrain Scan Density 10 Evasion (%) 44 Item Schematics ----------------- None Robot Schematics ------------------ None Fabricated ------------ Nothing Repaired ---------- Nothing Alien Tech Used ----------------- None Achievements -------------- None Challenges ------------ None Game ------ Seed ScanPoweredRail Manual? 0 Play Time 00:19:42 Cumulative 80.7 hours Start 2025.05.23 @ 09:45:02 End 2025.05.23 @ 10:06:29 Sessions 1 Manual Loads 0 Difficulty Rogue Special Mode None Game No. 71 Rogue 71 Adventurer 0 Explorer 0 Win Type - Total 0 Types 0/0/0/0/0/0/0/0/0/0 Lore% 36 Gallery% 39 Achievement% 41 Wizard Run 0 Options --------- Layout 1 ASCII 0 Keyboard 0 Movement Mouse Keybinds 0 Fullscreen 2 Font 24/X11 Map View 50x35 Zoom Use 0% Tactical HUD 1 Map Filters NONE Filters NONE Steam 1 RUN: c9b77d99-cf90-4010-9a2e-bceb9943e962